fUST/lending_fUST_20260205
["ID","MTS","AMOUNT","RATE_DAILY","PERIOD"]
[404548342,1770278185374,-500.0,0.00054794,120]
[404548343,1770278185428,-500.0,0.00054794,120]
[404548344,1770278185480,-500.0,0.00054794,120]
[404548345,1770278185534,-500.0,0.00054794,120]
[404548346,1770278185589,-500.0,0.00054794,120]
[404548347,1770278185643,-500.0,0.00054794,120]
[404548348,1770278185696,-500.0,0.00054794,120]
[404548349,1770278185747,-522.73589363,0.00054794,120]
[404548350,1770278185860,-500.0,0.00054794,120]
[404548351,1770278185912,-648.9941296,0.00054794,120]
[404548352,1770278185960,-512.10827083,0.00054794,120]
[404548353,1770278186008,-500.0,0.00054794,120]
[404548354,1770278186062,-184.0108564,0.00054794,120]
[404548355,1770278186114,-500.0,0.00054794,120]
[404548356,1770278186166,-500.0,0.00054794,54]
[404548357,1770278186218,-500.0,0.00054794,120]
[404548358,1770278186268,-508.77968171,0.00054794,120]
[404548359,1770278186317,-500.0,0.00054794,120]
[404548360,1770278186368,-500.0,0.00054794,60]
[404548361,1770278186419,-505.54590983,0.00054794,120]
[404548362,1770278186469,-514.99338347,0.00054794,120]
[404548363,1770278186520,-367.41228599,0.00054794,120]
[404548364,1770278186570,-500.0,0.00054794,120]
[404548365,1770278186619,-659.27,0.00054794,120]
[404548366,1770278186667,-550.0,0.00054794,30]
[404548367,1770278186715,-530.36749621,0.00054794,120]
[404548368,1770278186765,-500.0,0.00054794,120]
[404548369,1770278186814,-539.9164901,0.00054794,120]
[404548370,1770278186860,-1139.7,0.00054794,120]
[404548371,1770278186907,-500.0,0.00054794,120]
[404548372,1770278186952,-500.0,0.00054794,120]
[404548373,1770278186999,-517.34744849,0.00054794,120]
[404548374,1770278187049,-500.0,0.00054794,120]
[404548375,1770278187101,-500.0,0.00054794,120]
[404548376,1770278187152,-500.0,0.00054794,120]
[404548377,1770278187204,-579.90704887,0.00054794,120]
[404548378,1770278187257,-500.0,0.00054794,120]
[404548379,1770278187311,-512.02636697,0.00054794,120]
[404548380,1770278187365,-503.16072208,0.00054794,120]
[404548381,1770278187420,-507.2695516,0.00054794,120]
[404548382,1770278187474,-151.0,0.00054795,120]
[404548383,1770278187529,-151.0,0.00054795,120]
[404548384,1770278187581,-151.0,0.00054795,120]
[404548385,1770278187636,-151.0,0.00054795,120]
[404548386,1770278187689,-151.0,0.00054795,120]
[404548387,1770278187741,-151.0,0.00054795,120]
[404548388,1770278187851,-182.446301,0.00054795,120]
[404548389,1770278187900,-151.0,0.00054795,120]
[404548390,1770278187950,-151.0,0.00054795,120]
[404548391,1770278187997,-151.0,0.00054795,120]
[404548392,1770278188048,-151.0,0.00054795,120]
[404548393,1770278188099,-151.0,0.00054795,120]
[404548394,1770278188150,-151.0,0.00054795,120]
[404548395,1770278188204,-151.0,0.00054795,120]
[404548396,1770278188258,-151.0,0.00054795,120]
[404548397,1770278188314,-205.553022,0.00054795,120]
[404548398,1770278188368,-500.0,0.00054795,120]
[404548399,1770278188424,-500.0,0.00054795,120]
[404548400,1770278188480,-500.0,0.00054795,120]
[404548401,1770278188536,-500.0,0.00054795,120]
[404548402,1770278188593,-500.0,0.00054795,120]
[404548403,1770278188648,-500.0,0.00054795,120]
[404548404,1770278188702,-500.0,0.00054795,120]
[404548405,1770278188756,-500.0,0.00054795,120]
[404548406,1770278188812,-500.0,0.00054795,120]
[404548407,1770278188866,-500.0,0.00054795,120]
[404548408,1770278188920,-500.0,0.00054795,120]
[404548409,1770278188974,-500.0,0.00054795,120]
[404548410,1770278189029,-500.0,0.00054795,120]
[404548411,1770278189083,-500.0,0.00054795,120]
[404548412,1770278189138,-500.0,0.00054795,120]
[404548413,1770278189191,-500.0,0.00054795,120]
[404548414,1770278189246,-500.0,0.00054795,120]
[404548415,1770278189302,-280.535559,0.00054795,120]
[404548416,1770278189530,218.44,0.000395,30]
[404548417,1770278189601,500.0,0.00054794,120]
[404548418,1770278189673,218.44,0.000409,30]
[404548419,1770278189751,218.44,0.000423,30]
[404548420,1770278189826,218.44,0.000455,30]
[404548421,1770278189891,218.44,0.000489,30]
[404548422,1770278189961,218.44,0.000518,30]
[404548423,1770278190308,258.0,0.0003389,120]
[404548424,1770278191305,277.20002748,0.0003941,60]
[404548425,1770278210509,-285.0,0.0003589,120]
[404548426,1770278210567,-179.57006672,0.00037368,15]
[404548427,1770278210625,-197.18660747,0.00037368,15]
[404548428,1770278210687,-615.71,0.000394,10]
[404548429,1770278210743,-513.1,0.000394,10]
[404548430,1770278210798,-698.49,0.000394,10]
[404548431,1770278210854,-582.08,0.000394,10]
[404548432,1770278210910,-500.0,0.00041096,31]
[404548433,1770278211025,-305.56160056,0.00041096,31]
[404548434,1770278211078,-200.0,0.00043727,20]
[404548435,1770278211132,-209.87791118,0.0004989,120]
[404548436,1770278211185,-229.073786,0.00052054,60]
[404548437,1770278211235,-209.087023,0.0005283,60]
[404548438,1770278211288,-500.0,0.00054794,120]
[404548439,1770278211339,-500.0,0.00054794,120]
[404548440,1770278211392,-513.26578048,0.00054794,120]
[404548441,1770278211445,-500.0,0.00054794,120]
[404548442,1770278211497,-508.09286591,0.00054794,120]
[404548443,1770278211552,-2407.29,0.00054794,120]
[404548444,1770278211605,-556.61942682,0.00054794,120]
[404548445,1770278211657,-336.46161811,0.00054794,120]
[404548446,1770278211710,-520.53738667,0.00054794,120]
[404548447,1770278211760,-523.35279094,0.00054794,120]
[404548448,1770278211813,-500.0,0.00054794,120]
[404548449,1770278211877,500.0,0.00054794,120]
[404548450,1770278214655,500.0,0.00054794,120]
[404548451,1770278214853,500.0,0.00054794,120]
[404548452,1770278220516,271.82435516,0.0003941,120]
[404548453,1770278220900,271.82435516,0.0003941,120]
[404548454,1770278221285,271.82435516,0.0003941,120]
[404548455,1770278236293,-872.49793686,0.00054793,30]
[404548456,1770278236351,-999.0,0.00054794,120]
[404548457,1770278236405,-500.0,0.00054794,120]
[404548458,1770278236458,-500.0,0.00054794,120]
[404548459,1770278236512,-704.05,0.00054794,120]
[404548460,1770278236567,-150.0,0.00054794,120]
[404548461,1770278236624,-500.0,0.00054794,120]
[404548462,1770278236678,-151.0,0.00054794,120]
[404548463,1770278236731,-1200.0,0.00054794,120]
[404548464,1770278236789,-1000.0,0.00054794,120]
[404548465,1770278236843,-250.0,0.00054794,120]
[404548466,1770278236896,-500.0,0.00054794,120]
[404548467,1770278236947,-250.0,0.00054794,120]
[404548468,1770278236998,-433.23195527,0.00054794,120]
[404548469,1770278237052,-250.0,0.00054794,120]
[404548470,1770278237105,-1000.0,0.00054794,120]
[404548471,1770278237157,-500.0,0.00054794,120]
[404548472,1770278237210,-250.0,0.00054794,120]
[404548473,1770278237261,-151.0,0.00054794,120]
[404548474,1770278237318,-250.0,0.00054794,120]
[404548475,1770278237379,-500.0,0.00054794,120]
[404548476,1770278237441,-1000.0,0.00054794,120]
[404548477,1770278237500,-250.0,0.00054794,120]
[404548478,1770278237572,-500.0,0.00054794,120]
[404548479,1770278237633,-250.0,0.00054794,120]
[404548480,1770278237693,-500.0,0.00054794,120]
[404548481,1770278237753,-250.0,0.00054794,120]
[404548482,1770278237820,-1000.0,0.00054794,120]
[404548483,1770278237880,-250.0,0.00054794,120]
[404548484,1770278237940,-945.4,0.00054794,120]
[404548485,1770278237999,-172.59382175,0.00054794,120]
[404548486,1770278238066,-151.0,0.00054794,120]
[404548487,1770278238212,-500.0,0.00054794,120]
[404548488,1770278238269,-250.0,0.00054794,120]
[404548489,1770278238329,-250.0,0.00054794,120]
[404548490,1770278238388,-1000.0,0.00054794,120]
[404548491,1770278238448,-250.0,0.00054794,120]
[404548492,1770278238507,-500.0,0.00054794,120]
[404548493,1770278238572,-156.587,0.00054794,120]
[404548494,1770278238628,-500.0,0.00054794,120]
[404548495,1770278238682,-250.0,0.00054794,120]
[404548496,1770278238740,-1000.0,0.00054794,120]
[404548497,1770278238793,-274.9757,0.00054794,120]
[404548498,1770278238852,-250.0,0.00054794,120]
[404548499,1770278238906,-519.46373025,0.00054794,120]
[404548500,1770278238960,-500.0,0.00054794,120]
[404548501,1770278239017,-162.380719,0.00054794,120]
[404548502,1770278239072,-250.0,0.00054794,120]
[404548503,1770278239128,-500.0,0.00054794,120]
[404548504,1770278239184,-250.0,0.00054794,120]
[404548505,1770278239237,-1000.0,0.00054794,120]
[404548506,1770278239291,-250.0,0.00054794,120]
[404548507,1770278239355,-500.0,0.00054794,120]
[404548508,1770278239411,-168.3888056,0.00054794,120]
[404548509,1770278239464,-250.0,0.00054794,120]
[404548510,1770278239519,-500.0,0.00054794,120]
[404548511,1770278239574,-250.0,0.00054794,120]
[404548512,1770278239634,-1000.0,0.00054794,120]
[404548513,1770278239689,-250.0,0.00054794,120]
[404548514,1770278239749,-500.0,0.00054794,120]
[404548515,1770278239810,-250.0,0.00054794,120]
[404548516,1770278239873,-250.0,0.00054794,120]
[404548517,1770278239933,-174.61919141,0.00054794,120]
[404548518,1770278239989,-500.0,0.00054794,120]
[404548519,1770278240048,-250.0,0.00054794,120]
[404548520,1770278240108,-1000.0,0.00054794,120]
[404548521,1770278240166,-250.0,0.00054794,120]
[404548522,1770278240221,-500.0,0.00054794,120]
[404548523,1770278240278,-250.0,0.00054794,120]
[404548524,1770278240340,-181.08010149,0.00054794,120]
[404548525,1770278240399,-500.0,0.00054794,120]
[404548526,1770278240455,-250.0,0.00054794,120]
[404548527,1770278240509,-250.0,0.00054794,120]
[404548528,1770278240568,-1000.0,0.00054794,120]
[404548529,1770278240630,-250.0,0.00054794,120]
[404548530,1770278240688,-500.0,0.00054794,120]
[404548531,1770278240748,-187.78006525,0.00054794,120]
[404548532,1770278240811,-250.0,0.00054794,120]
[404548533,1770278240872,-168.78958132,0.00054794,120]
[404548534,1770278240931,-250.0,0.00054794,120]
[404548535,1770278240990,-1000.0,0.00054794,120]
[404548536,1770278241051,-250.0,0.00054794,120]
[404548537,1770278241112,-500.0,0.00054794,120]
[404548538,1770278241171,-194.72792766,0.00054794,120]
[404548539,1770278241232,-250.0,0.00054794,120]
[404548540,1770278241291,-250.0,0.00054794,120]
[404548541,1770278241358,-1000.0,0.00054794,120]
[404548542,1770278241415,-250.0,0.00054794,120]
[404548543,1770278241471,-500.0,0.00054794,120]
[404548544,1770278241530,-201.93286099,0.00054794,120]
[404548545,1770278241586,-250.0,0.00054794,120]
[404548546,1770278241641,-250.0,0.00054794,120]
[404548547,1770278241696,-1000.0,0.00054794,120]
[404548548,1770278241753,-250.0,0.00054794,120]
[404548549,1770278241810,-500.0,0.00054794,120]
[404548550,1770278241865,-209.40437684,0.00054794,120]
[404548551,1770278241918,-536.45581321,0.00054794,120]
[404548552,1770278241973,-250.0,0.00054794,120]
[404548553,1770278242025,-250.0,0.00054794,120]
[404548554,1770278242081,-500.0,0.00054794,120]
[404548555,1770278242136,-1000.0,0.00054794,120]
[404548556,1770278242190,-250.0,0.00054794,120]
[404548557,1770278242243,-250.0,0.00054794,120]
[404548558,1770278242299,-250.0,0.00054794,120]
[404548559,1770278242359,-217.15233878,0.00054794,120]
[404548560,1770278242417,-1000.0,0.00054794,120]
[404548561,1770278242474,-250.0,0.00054794,120]
[404548562,1770278242612,-250.0,0.00054794,120]
[404548563,1770278242663,-250.0,0.00054794,120]
[404548564,1770278242714,-250.0,0.00054794,120]
[404548565,1770278242766,-225.18697532,0.00054794,120]
[404548566,1770278242817,-250.0,0.00054794,120]
[404548567,1770278242867,-1000.0,0.00054794,120]
[404548568,1770278242916,-250.0,0.00054794,120]
[404548569,1770278242963,-250.0,0.00054794,120]
[404548570,1770278243014,-250.0,0.00054794,120]
[404548571,1770278243072,-233.51889341,0.00054794,120]
[404548572,1770278243128,-250.0,0.00054794,120]
[404548573,1770278243182,-1000.0,0.00054794,120]
[404548574,1770278243237,-250.0,0.00054794,120]
[404548575,1770278243289,-151.0,0.00054795,120]
[404548576,1770278243343,-151.0,0.00054795,120]
[404548577,1770278243399,-151.0,0.00054891,120]
[404548578,1770278243456,-151.0,0.00054891,120]
[404548579,1770278243510,-2019.06926852,0.00054891,120]
[404548580,1770278243568,-4743.08768921,0.000549,120]
[404548581,1770278243624,-161.82,0.00054931,120]
[404548582,1770278243679,-1398.05,0.00055,120]
[404548583,1770278243732,-278.45,0.00055,120]
[404548584,1770278243790,-1000.0,0.00055,60]
[404548585,1770278243848,-155.0,0.000551,120]
[404548586,1770278243905,-218.44,0.000551,30]
[404548587,1770278243961,-210.22231636,0.00055342,120]
[404548588,1770278244016,-500.0,0.00055342,120]
[404548589,1770278244075,-500.0,0.00055342,120]
[404548590,1770278244131,-222.07918484,0.00055342,120]
[404548591,1770278244187,-194.5795908,0.00055342,120]
[404548592,1770278244242,-500.0,0.00055342,30]
[404548593,1770278244298,-500.0,0.00055342,120]
[404548594,1770278244353,-818.26,0.00055342,120]
[404548595,1770278244407,-584.19,0.00055342,120]
[404548596,1770278244461,-884.33,0.00055342,120]
[404548597,1770278244514,-2441.21,0.00055342,120]
[404548598,1770278244567,-500.0,0.00055342,120]
[404548599,1770278244621,-500.0,0.00055342,120]
[404548600,1770278244672,-500.0,0.00055342,120]
[404548601,1770278244724,-500.0,0.00055342,120]
[404548602,1770278244779,-500.0,0.00055342,120]
[404548603,1770278244835,-500.0,0.00055342,120]
[404548604,1770278244888,-500.0,0.00055342,120]
[404548605,1770278244941,-578.75026868,0.00055342,120]
[404548606,1770278244997,-500.0,0.00055342,120]
[404548607,1770278245050,-500.0,0.00055342,120]
[404548608,1770278245102,-514.11894208,0.00055342,120]
[404548609,1770278245154,-500.0,0.00055342,120]
[404548610,1770278245206,-520.94945994,0.00055342,120]
[404548611,1770278245259,-542.43287682,0.00055342,120]
[404548612,1770278245310,-516.97182034,0.00055342,120]
[404548613,1770278245360,-500.0,0.00055342,120]
[404548614,1770278245408,-544.71587222,0.00055342,120]
[404548615,1770278245458,-500.0,0.00055342,120]
[404548616,1770278245510,-332.34311874,0.00055342,120]
[404548617,1770278245568,-546.51385002,0.00055342,120]
[404548618,1770278245622,-500.0,0.00055342,120]
[404548619,1770278245674,-812.05,0.00055342,120]
[404548620,1770278245725,-500.0,0.00055342,120]
[404548621,1770278245776,-500.0,0.00055342,120]
[404548622,1770278245829,-2641.29,0.00055342,120]
[404548623,1770278245880,-759.38,0.00055342,120]
[404548624,1770278245928,-500.0,0.00055342,120]
[404548625,1770278245977,-500.0,0.00055342,120]
[404548626,1770278246025,-500.0,0.00055342,120]
[404548627,1770278246078,-365.75628915,0.00055342,120]
[404548628,1770278246128,-538.73,0.00055342,120]
[404548629,1770278246178,-500.0,0.00055342,120]
[404548630,1770278246226,-500.0,0.00055342,120]
[404548631,1770278246275,-500.0,0.00055342,120]
[404548632,1770278246325,-500.0,0.00055342,120]
[404548633,1770278246378,-500.0,0.00055342,120]
[404548634,1770278246429,-500.0,0.00055342,120]
[404548635,1770278246477,-245.95326318,0.00055342,120]
[404548636,1770278246526,-500.0,0.00055342,120]
[404548637,1770278246574,-538.38,0.00055342,120]
[404548638,1770278246627,-528.18033862,0.00055342,120]
[404548639,1770278246677,-243.86470242,0.00055342,120]
[404548640,1770278246725,-500.0,0.00055342,120]
[404548641,1770278246777,-205.88427203,0.00055342,120]
[404548642,1770278246825,-515.94725062,0.00055342,120]
[404548643,1770278246875,-500.0,0.00055342,120]
[404548644,1770278247015,-500.0,0.00055342,120]
[404548645,1770278247068,-500.0,0.00055342,120]
[404548646,1770278247120,-486.85456304,0.00055342,120]
[404548647,1770278247173,-500.0,0.00055342,120]
[404548648,1770278247224,-500.0,0.00055342,120]
[404548649,1770278247276,-500.0,0.00055342,120]
[404548650,1770278247329,-500.0,0.00055342,120]
[404548651,1770278247381,-500.0,0.00055342,120]
[404548652,1770278247433,-552.39025015,0.00055342,120]
[404548653,1770278247485,-500.0,0.00055342,120]
[404548654,1770278247535,-500.0,0.00055342,120]
[404548655,1770278247586,-500.0,0.00055342,120]
[404548656,1770278247635,-500.0,0.00055342,120]
[404548657,1770278247687,-500.0,0.00055342,120]
[404548658,1770278247738,-500.0,0.00055342,120]
[404548659,1770278247791,-500.0,0.00055342,120]
[404548660,1770278247844,-500.0,0.00055342,120]
[404548661,1770278247894,-500.0,0.00055342,120]
[404548662,1770278247946,-500.0,0.00055342,120]
[404548663,1770278247995,-500.0,0.00055342,120]
[404548664,1770278248045,-500.0,0.00055342,120]
[404548665,1770278248096,-151.17420363,0.00055342,120]
[404548666,1770278248147,-500.0,0.00055342,120]
[404548667,1770278248197,-500.0,0.00055342,120]
[404548668,1770278248246,-500.0,0.00055342,120]
[404548669,1770278248292,-500.0,0.00055342,120]
[404548670,1770278248341,-500.0,0.00055342,120]
[404548671,1770278248391,-500.0,0.00055342,120]
[404548672,1770278248440,-500.0,0.00055342,120]
[404548673,1770278248491,-500.0,0.00055342,120]
[404548674,1770278248546,-500.0,0.00055342,120]
[404548675,1770278248600,-269.45224128,0.00055342,120]
[404548676,1770278248651,-500.0,0.00055342,120]
[404548677,1770278248701,-200.0,0.00055342,120]
[404548678,1770278248751,-153.11531469,0.00055342,120]
[404548679,1770278248802,-500.0,0.00055342,120]
[404548680,1770278248853,-525.40020828,0.00055342,120]
[404548681,1770278248906,-500.0,0.00055342,120]
[404548682,1770278248960,-500.0,0.00055342,120]
[404548683,1770278249015,-160.51860337,0.00055342,120]
[404548684,1770278249075,-500.0,0.00055342,120]
[404548685,1770278249138,-500.0,0.00055342,120]
[404548686,1770278249202,-500.0,0.00055342,120]
[404548687,1770278249266,-500.0,0.00055342,120]
[404548688,1770278249324,-500.0,0.00055342,120]
[404548689,1770278249384,-500.0,0.00055342,120]
[404548690,1770278249445,-780.7,0.00055342,120]
[404548691,1770278249502,-500.0,0.00055342,120]
[404548692,1770278249563,-500.0,0.00055342,120]
[404548693,1770278249621,-500.0,0.00055342,120]
[404548694,1770278249680,-500.0,0.00055342,120]
[404548695,1770278249741,-500.0,0.00055342,120]
[404548696,1770278249804,-404.57786169,0.00055342,120]
[404548697,1770278249863,-500.0,0.00055342,120]
[404548698,1770278249921,-674.29,0.00055342,120]
[404548699,1770278249979,-586.39608682,0.00055342,120]
[404548700,1770278250041,-500.0,0.00055342,120]
[404548701,1770278250104,-574.49,0.00055342,120]
[404548702,1770278250165,-500.0,0.00055342,120]
[404548703,1770278250223,-151.19459014,0.00055342,120]
[404548704,1770278250279,-500.0,0.00055342,120]
[404548705,1770278250330,-500.0,0.00055342,120]
[404548706,1770278250382,-819.11,0.00055342,120]
[404548707,1770278250439,-720.66,0.00055342,120]
[404548708,1770278250494,-500.0,0.00055342,120]
[404548709,1770278250550,-500.0,0.00055342,120]
[404548710,1770278250610,-500.0,0.00055342,120]
[404548711,1770278250666,-500.0,0.00055342,120]
[404548712,1770278250722,-538.11317503,0.00055342,120]
[404548713,1770278250779,-500.0,0.00055342,120]
[404548714,1770278250838,-500.0,0.00055342,120]
[404548715,1770278250896,-500.0,0.00055342,120]
[404548716,1770278250953,-500.0,0.00055342,120]
[404548717,1770278251013,-500.0,0.00055342,120]
[404548718,1770278251075,-500.0,0.00055342,120]
[404548719,1770278251133,-500.0,0.00055342,120]
[404548720,1770278251191,-500.0,0.00055342,120]
[404548721,1770278251248,-500.0,0.00055342,120]
[404548722,1770278251306,-500.0,0.00055342,120]
[404548723,1770278251491,-403.17276238,0.00055342,120]
[404548724,1770278251554,-500.0,0.00055342,120]
[404548725,1770278251612,-579.20387122,0.00055342,120]
[404548726,1770278251663,-501.24790665,0.00055342,120]
[404548727,1770278251712,-500.0,0.00055342,120]
[404548728,1770278251762,-500.0,0.00055342,120]
[404548729,1770278251817,-500.0,0.00055342,54]
[404548730,1770278251872,-171.78122686,0.00055342,120]
[404548731,1770278251925,-500.0,0.00055342,120]
[404548732,1770278251977,-500.0,0.00055342,60]
[404548733,1770278252029,-500.0,0.00055342,120]
[404548734,1770278252084,-659.27,0.00055342,120]
[404548735,1770278252137,-550.0,0.00055342,30]
[404548736,1770278252191,-500.0,0.00055342,120]
[404548737,1770278252246,-1139.7,0.00055342,120]
[404548738,1770278252298,-500.0,0.00055342,120]
[404548739,1770278252351,-500.0,0.00055342,120]
[404548740,1770278252406,-500.0,0.00055342,120]
[404548741,1770278252459,-193.01192247,0.00055342,120]
[404548742,1770278252513,-500.0,0.00055342,120]
[404548743,1770278252566,-500.0,0.00055342,120]
[404548744,1770278252621,-500.0,0.00055342,120]
[404548745,1770278252675,-500.0,0.00055342,120]
[404548746,1770278252730,-2407.29,0.00055342,120]
[404548747,1770278252789,-500.0,0.00055342,120]
[404548748,1770278252841,-500.0,0.00055342,120]
[404548749,1770278252890,-500.0,0.00055342,120]
[404548750,1770278252941,-500.0,0.00055342,120]
[404548751,1770278252990,-500.0,0.00055342,120]
[404548752,1770278253043,-238.44326727,0.00055342,120]
[404548753,1770278253100,-704.05,0.00055342,120]
[404548754,1770278253153,-150.0,0.00055342,120]
[404548755,1770278253206,-500.0,0.00055342,120]
[404548756,1770278253259,-500.0,0.00055342,120]
[404548757,1770278253314,-945.4,0.00055342,120]
[404548758,1770278253373,-314.66194455,0.00055342,120]
[404548759,1770278253426,-632.0,0.0005561,120]
[404548760,1770278253482,-2187.682,0.0005561,120]
[404548761,1770278253536,-1372.0,0.0005561,120]
[404548762,1770278253591,-150.744,0.0005561,120]
[404548763,1770278253643,-233.125,0.0005561,120]
[404548764,1770278253698,-247.381,0.0005561,120]
[404548765,1770278253756,-268.359,0.0005561,120]
[404548766,1770278253810,-161.82,0.00055616,120]
[404548767,1770278253865,-613.61548388,0.0005589,120]
[404548768,1770278253920,-576.85357948,0.0005589,120]
[404548769,1770278253977,-500.0,0.0005589,30]
[404548770,1770278254036,-416.91513961,0.0005589,120]
[404548771,1770278254094,-818.26,0.0005589,120]
[404548772,1770278254153,-584.19,0.0005589,120]
[404548773,1770278254212,-884.33,0.0005589,120]
[404548774,1770278254270,-2441.21,0.0005589,120]
[404548775,1770278254328,-500.0,0.0005589,120]
[404548776,1770278254383,-509.43588178,0.0005589,120]
[404548777,1770278254438,-500.0,0.0005589,120]
[404548778,1770278254495,-500.0,0.0005589,120]
[404548779,1770278254551,-500.0,0.0005589,120]
[404548780,1770278254605,-500.0,0.0005589,120]
[404548781,1770278254660,-500.0,0.0005589,120]
[404548782,1770278254712,-500.0,0.0005589,120]
[404548783,1770278254767,-500.0,0.0005589,120]
[404548784,1770278254823,-500.0,0.0005589,120]
[404548785,1770278254883,-812.05,0.0005589,120]
[404548786,1770278254938,-500.0,0.0005589,120]
[404548787,1770278254992,-500.0,0.0005589,120]
[404548788,1770278255047,-2641.29,0.0005589,120]
[404548789,1770278255103,-759.38,0.0005589,120]
[404548790,1770278255154,-500.0,0.0005589,120]
[404548791,1770278255203,-635.34058013,0.0005589,120]
[404548792,1770278255253,-500.0,0.0005589,120]
[404548793,1770278255301,-538.73,0.0005589,120]
[404548794,1770278255352,-500.0,0.0005589,120]
[404548795,1770278255403,-572.31976683,0.0005589,120]
[404548796,1770278255454,-500.0,0.0005589,120]
[404548797,1770278255509,-500.0,0.0005589,120]
[404548798,1770278255564,-600.32621463,0.0005589,120]
[404548799,1770278255618,-500.0,0.0005589,120]
[404548800,1770278255673,-538.38,0.0005589,120]
[404548801,1770278255730,-500.0,0.0005589,120]
[404548802,1770278255793,-500.0,0.0005589,120]
[404548803,1770278255920,-500.0,0.0005589,120]
[404548804,1770278255996,-501.42892506,0.0005589,120]
[404548805,1770278256059,-500.0,0.0005589,120]
[404548806,1770278256129,-326.17217988,0.0005589,120]
[404548807,1770278256186,-604.15574391,0.0005589,120]
[404548808,1770278256245,-606.28805844,0.0005589,120]
[404548809,1770278256299,-500.0,0.0005589,120]
[404548810,1770278256360,-500.0,0.0005589,120]
[404548811,1770278256414,-500.0,0.0005589,120]
[404548812,1770278256470,-500.0,0.0005589,120]
[404548813,1770278256524,-500.0,0.0005589,120]
[404548814,1770278256579,-633.13712997,0.0005589,120]
[404548815,1770278256634,-500.0,0.0005589,120]
[404548816,1770278256686,-500.0,0.0005589,120]
[404548817,1770278256741,-500.0,0.0005589,120]
[404548818,1770278256795,-413.01484174,0.0005589,120]
[404548819,1770278256847,-500.0,0.0005589,120]
[404548820,1770278256896,-500.0,0.0005589,120]
[404548821,1770278256945,-400.68310082,0.0005589,120]
[404548822,1770278256993,-638.9957463,0.0005589,120]
[404548823,1770278257045,-500.0,0.0005589,120]
[404548824,1770278257099,-500.0,0.0005589,120]
[404548825,1770278257151,-454.77194956,0.0005589,120]
[404548826,1770278257204,-500.0,0.0005589,120]
[404548827,1770278257257,-401.9,0.0005589,120]
[404548828,1770278257311,-500.0,0.0005589,120]
[404548829,1770278257368,-588.724615,0.0005589,120]
[404548830,1770278257420,-500.0,0.0005589,120]
[404548831,1770278257473,-500.0,0.0005589,120]
[404548832,1770278257527,-200.0,0.0005589,120]
[404548833,1770278257581,-281.02802375,0.0005589,120]
[404548834,1770278257635,-500.0,0.0005589,120]
[404548835,1770278257687,-500.0,0.0005589,120]
[404548836,1770278257736,-500.0,0.0005589,120]
[404548837,1770278257792,-413.02486521,0.0005589,120]
[404548838,1770278257848,-599.48099161,0.0005589,120]
[404548839,1770278257901,-500.0,0.0005589,120]
[404548840,1770278257954,-500.0,0.0005589,120]
[404548841,1770278258009,-500.0,0.0005589,120]